bitfinex-derivatives/quotes_ETHF0:USTF0_20250220
["timestamp","ask_amount","ask_price","bid_price","bid_amount"]
[1740045764907,7.8942,2731.0,2730.9,0.73234]
[1740045765108,7.8942,2731.0,2730.6,0.578193]
[1740045765497,7.8942,2731.0,2730.8,0.73235]
[1740045765702,7.8942,2731.0,2730.6,0.578193]
[1740045765901,7.8942,2731.0,2730.8,0.73235]
[1740045766309,7.8942,2731.0,2730.9,0.73234]
[1740045766608,8.62653,2731.0,2730.8,0.73236]
[1740045768214,7.8942,2731.0,2730.9,0.73234]
[1740045768403,8.62651,2731.0,2730.8,0.73235]
[1740045769112,7.8942,2731.0,2730.9,0.73234]
[1740045770013,4.9342,2731.0,2730.9,0.73234]
[1740045770715,3.7882,2731.0,2730.9,0.73234]
[1740045771115,3.2078,2731.0,2730.9,0.73234]
[1740045771414,0.005493,2731.2,2731.1,0.73229]
[1740045772612,0.005493,2731.2,2731.1,1.31659]
[1740045784521,0.737753,2731.2,2731.1,1.31659]
[1740045786021,0.005493,2731.2,2731.1,1.31659]
[1740045786221,0.737753,2731.2,2731.1,1.31659]
[1740045786719,0.737753,2731.2,2731.1,0.5843]
[1740045786930,0.73233,2731.0,2730.9,0.73233]
[1740045787119,0.005493,2731.2,2730.7,3.9647]
[1740045787520,0.73234,2730.9,2730.8,0.73235]
[1740045787719,0.73234,2730.9,2730.7,3.9647]
[1740045787720,0.005493,2731.2,2730.7,1.6437]
[1740045787919,0.73237,2730.8,2730.7,2.37608]
[1740045788226,1.836153,2731.2,2730.7,1.6437]
[1740045788427,0.73237,2730.8,2730.7,2.37609]
[1740045789326,0.73237,2730.8,2730.7,1.6437]
[1740045789723,0.73237,2730.8,2730.7,2.37609]
[1740045790123,0.73237,2730.8,2730.7,1.6437]
[1740045790528,0.73237,2730.8,2730.7,2.37609]
[1740045791322,0.73237,2730.8,2730.7,1.6437]
[1740045791629,0.73237,2730.8,2730.7,2.37609]
[1740045791822,0.005493,2731.2,2730.9,0.73233]
[1740045792128,0.005493,2731.2,2731.0,0.7323]
[1740045792316,0.005493,2731.2,2730.7,1.6437]
[1740045792520,0.73229,2731.1,2731.0,0.7323]
[1740045792719,0.005493,2731.2,2731.0,0.7323]
[1740045792923,0.005493,2731.2,2731.1,0.73229]
[1740045794533,0.7323,2731.1,2731.0,0.7323]
[1740045794733,0.005493,2731.2,2730.9,5.5288]
[1740045795032,0.73231,2731.0,2730.9,5.5288]
[1740045795430,0.7323,2731.1,2730.9,5.5288]
[1740045795931,0.005493,2731.2,2730.9,6.26113]
[1740045796132,0.73231,2731.0,2730.9,5.5288]
[1740045796433,0.005493,2731.2,2730.9,5.5288]
[1740045796729,0.73229,2731.1,2730.9,6.26113]
[1740045797329,0.73229,2731.1,2730.9,5.5288]
[1740045797631,0.737763,2731.2,2731.1,0.73229]
[1740045798022,0.73231,2731.0,2730.9,5.5288]
[1740045798226,0.73231,2731.0,2730.9,6.26112]
[1740045798432,0.005493,2731.2,2730.9,6.26112]
[1740045798733,0.73231,2731.1,2731.0,0.73231]
[1740045799032,0.737773,2731.2,2731.0,0.7323]
[1740045799230,0.73231,2731.1,2730.9,6.26113]
[1740045799631,0.73231,2731.1,2730.9,5.5288]
[1740045799836,0.73231,2731.1,2731.0,0.73231]
[1740045801836,0.005493,2731.2,2730.9,5.5288]
[1740045802035,0.005493,2731.2,2731.1,0.73229]
[1740045803734,0.737753,2731.2,2731.1,0.73229]
[1740045804035,0.73231,2731.0,2730.9,6.26113]
[1740045804229,0.73231,2731.0,2730.9,3.2078]
[1740045804430,0.592,2731.1,2730.7,1.6437]
[1740045804631,0.592,2731.1,2730.7,3.428]
[1740045804632,0.73237,2730.8,2730.7,3.428]
[1740045804836,0.73237,2730.8,2730.7,4.0062]
[1740045806736,0.73237,2730.8,2730.7,4.73859]
[1740045806929,0.73237,2730.8,2730.7,4.0062]
[1740045811140,0.73237,2730.8,2730.7,4.73859]
[1740045811941,0.73237,2730.8,2730.7,4.0062]
[1740045812741,0.73237,2730.8,2730.7,1.6852]
[1740045815851,3.55297,2731.1,2730.6,3.213293]
[1740045816049,0.73239,2730.7,2730.6,3.213293]
[1740045817049,0.73239,2730.7,2730.6,0.005493]
[1740045817240,1.83125,2730.4,2729.7,3.2078]
[1740045817446,0.73255,2730.1,2730.0,3.2078]
[1740045819451,0.73261,2729.9,2729.8,0.005493]
[1740045826656,0.73261,2729.9,2729.8,3.213293]
[1740045828351,0.73261,2729.9,2729.8,3.945923]
[1740045828552,0.73261,2729.9,2729.8,3.213293]
[1740045830559,0.73261,2729.9,2729.8,3.945923]
[1740045830752,0.73261,2729.9,2729.8,3.213293]
[1740045837967,0.73261,2729.9,2729.8,0.005493]
[1740045844566,6.0,2729.9,2728.8,3.2078]
[1740045844866,5.0397,2729.4,2728.8,4.3268]
[1740045845168,0.73288,2728.9,2728.8,4.3268]
[1740045845568,0.73288,2728.9,2728.8,5.0597]
[1740045845766,0.73287,2729.0,2728.8,5.0597]
[1740045846060,0.005493,2729.1,2728.8,4.3268]
[1740045846365,0.005493,2729.1,2728.8,4.61551035]
[1740045846573,0.005493,2729.1,2729.0,0.73285]
[1740045847771,0.005493,2729.1,2729.0,41.53285]
[1740045854272,0.7327,2729.6,2729.5,0.7327]
[1740045854469,0.73269,2729.6,2729.5,2.323]
[1740045854869,0.73267,2729.7,2729.5,3.9788]
[1740045855172,0.73269,2729.6,2729.5,4.71151]
[1740045855578,0.005493,2729.9,2729.5,3.9788]
[1740045856174,0.73268,2729.7,2729.5,4.7115]
[1740045856375,0.73268,2729.7,2729.5,3.9788]
[1740045856576,0.73268,2729.7,2729.6,0.73269]
[1740045856867,0.005493,2729.9,2729.5,4.7115]
[1740045857174,0.73269,2729.6,2729.5,4.7115]
[1740045858075,0.73269,2729.6,2729.5,3.9788]
[1740045858576,0.73269,2729.6,2729.5,4.71152]
[1740045860179,0.005493,2729.9,2729.5,3.9788]
[1740045860678,0.73269,2729.6,2729.5,4.7115]
[1740045861478,0.73269,2729.6,2729.5,7.9193]
[1740045863679,0.73269,2729.6,2729.5,7.1866]
[1740045864178,0.73269,2729.6,2729.5,7.91932]
[1740045866480,0.73269,2729.6,2729.5,7.1866]
[1740045867281,0.73269,2729.6,2729.5,3.2078]
[1740045870181,3.2078,2729.8,2728.9,3.2078]
[1740045870386,0.73285,2729.0,2728.9,3.2078]
[1740045870782,3.7889,2729.5,2728.9,3.2078]
[1740045870783,0.73284,2729.1,2728.9,3.2078]
[1740045871074,0.73277,2729.3,2728.9,3.2078]
[1740045871381,0.5598,2729.4,2728.9,3.2078]
[1740045871880,0.73285,2729.0,2728.9,3.2078]
[1740045872981,0.73284,2729.1,2728.9,3.94068]
[1740045874283,1.139,2729.4,2728.9,3.2078]
[1740045874580,0.73284,2729.1,2728.9,3.94067]
[1740045874777,1.139,2729.4,2728.9,3.2078]
[1740045875082,0.73283,2729.1,2728.9,3.94067]
[1740045875483,1.139,2729.4,2728.9,3.2078]
[1740045875680,0.73285,2729.0,2728.9,3.2078]
[1740045883383,0.73293,2728.7,2728.6,0.005493]
[1740045883584,0.73293,2728.7,2728.6,3.213293]
[1740045889382,0.73293,2728.7,2728.6,0.005493]
[1740045889582,0.73293,2728.7,2728.6,3.213293]
[1740045891688,0.73293,2728.7,2728.6,0.005493]
[1740045891989,0.73293,2728.7,2728.6,3.213293]
[1740045893584,0.73293,2728.7,2728.6,3.946253]
[1740045893783,0.73293,2728.7,2728.6,44.746253]
[1740045893988,0.73293,2728.7,2728.6,44.013293]
[1740045894290,0.73293,2728.7,2728.6,3.213293]
[1740045894489,0.73293,2728.7,2728.6,3.946253]
[1740045895784,0.73293,2728.7,2728.6,0.738453]
[1740045896089,0.73293,2728.7,2728.6,3.946253]
[1740045896891,0.73292,2728.8,2728.7,0.73292]
[1740045897087,1.0963,2728.9,2728.6,3.213293]
[1740045897391,0.73293,2728.7,2728.6,3.946243]
[1740045897991,0.73293,2728.7,2728.6,3.213293]
[1740045898291,0.73293,2728.7,2728.6,3.946253]
[1740045899792,0.73293,2728.7,2728.6,3.213293]
[1740045899992,0.73293,2728.7,2728.6,3.946253]
[1740045900590,1.0963,2728.9,2728.6,3.213293]
[1740045901190,0.73293,2728.7,2728.6,3.946243]
[1740045902192,0.73293,2728.7,2728.6,3.213293]
[1740045902890,0.73293,2728.7,2728.6,3.946253]
[1740045903295,0.73292,2728.8,2728.7,0.73292]
[1740045903487,0.73293,2728.7,2728.6,3.946243]
[1740045903890,0.73293,2728.7,2728.6,3.213293]
[1740045904791,0.73293,2728.7,2728.6,0.005493]
[1740045904993,0.73293,2728.7,2728.6,3.946253]
[1740045906595,0.73293,2728.7,2728.6,3.213293]
[1740045906793,0.73293,2728.7,2728.6,3.946253]
[1740045907393,0.73293,2728.7,2728.6,0.738453]
[1740045907696,0.73293,2728.7,2728.6,3.946253]
[1740045908193,0.73293,2728.7,2728.6,3.213293]
[1740045909196,0.73293,2728.7,2728.6,3.946253]
[1740045910495,0.73293,2728.7,2728.6,0.738453]
[1740045910695,0.73293,2728.7,2728.6,3.946253]
[1740045915800,0.5405,2728.9,2728.6,3.213293]
[1740045916097,0.7329,2728.8,2728.7,0.73292]
[1740045918700,0.73293,2728.7,2728.6,3.946243]
[1740045919094,0.73292,2728.8,2728.7,0.73293]
[1740045919800,0.73292,2728.8,2728.6,3.213293]
[1740045919994,0.73292,2728.8,2728.7,0.73293]
[1740045920399,0.73292,2728.8,2728.6,3.213293]
[1740045920603,0.73292,2728.8,2728.7,0.73293]
[1740045921807,0.73292,2728.8,2728.6,3.213293]
[1740045922103,0.73292,2728.8,2728.7,0.73293]
[1740045922406,0.73292,2728.8,2728.6,3.213293]
[1740045922605,0.73292,2728.8,2728.6,3.946223]
[1740045922902,0.73292,2728.8,2728.6,0.738423]
[1740045923108,0.73292,2728.8,2728.7,3.2078]
[1740045923810,0.73292,2728.8,2728.7,3.94073]
[1740045924509,0.73292,2728.8,2728.7,3.2078]
[1740045924903,1.7274,2729.2,2728.7,3.2078]
[1740045925104,1.149,2729.2,2728.8,0.5572]
[1740045925304,1.149,2729.2,2728.9,0.73287]
[1740045925506,0.73285,2729.1,2728.9,3.62187]
[1740045925810,0.73285,2729.1,2729.0,0.73285]
[1740045926110,0.73285,2729.1,2728.9,3.62186]
[1740045926307,0.73285,2729.0,2728.9,3.62186]
[1740045926507,0.73285,2729.0,2728.9,2.889]
[1740045929111,3.2078,2729.3,2728.9,2.889]
[1740045929410,0.73285,2729.0,2728.9,2.889]
[1740045929611,0.73285,2729.0,2728.9,3.62188]
[1740045929910,3.2078,2729.3,2728.9,2.889]
[1740045930308,0.73284,2729.1,2729.0,0.73284]
[1740045930508,0.73284,2729.1,2728.9,3.62186]
[1740045930812,0.5343,2729.4,2729.0,3.2078]
[1740045931113,0.5343,2729.4,2729.1,0.73281]
[1740045931309,0.73277,2729.3,2729.2,0.5421]
[1740045931510,0.5593,2729.5,2729.2,1.132]
[1740045931712,0.73266,2729.7,2729.5,0.7327]
[1740045931911,0.73266,2729.7,2729.6,1.1528]
[1740045940120,0.5804,2729.8,2729.6,1.1528]
[1740045940415,0.005493,2729.9,2729.8,0.73263]
[1740045940621,0.005493,2729.9,2729.8,3.94043]
[1740045941319,0.73247,2730.4,2730.2,0.73252]
[1740045941515,3.2078,2730.9,2730.3,7.2555]
[1740045941714,0.73238,2730.8,2730.5,0.73244]
[1740045941915,3.94015,2730.9,2730.6,0.73241]
[1740045942221,3.94016,2730.9,2730.7,2.322]
[1740045942417,3.94016,2730.9,2730.8,1.1482]
[1740045943018,3.2078,2730.9,2730.8,1.1482]
[1740045943219,3.94014,2730.9,2730.8,1.1482]
[1740045943522,0.73234,2730.9,2730.8,1.1482]
[1740045950818,0.542093,2731.0,2730.7,2.322]
[1740045950819,0.73237,2730.8,2730.7,2.322]
[1740045951019,1.27817,2730.8,2730.7,2.322]
[1740045952226,0.73239,2730.7,2730.6,3.2078]
[1740045952420,0.73239,2730.7,2730.6,5.5288]
[1740045954427,0.73239,2730.7,2730.6,6.0746]
[1740045956732,0.5458,2730.8,2730.6,6.0746]
[1740045956929,0.73239,2730.7,2730.6,6.0746]
[1740045962741,0.5458,2730.8,2730.6,6.0746]
[1740045962939,1.27817,2730.8,2730.7,0.73239]
[1740045963139,1.27817,2730.8,2730.7,1.159]
[1740045964237,0.542093,2731.0,2730.7,1.89139]
[1740045964432,0.73235,2730.9,2730.7,1.159]
[1740045964634,0.73237,2730.8,2730.7,1.89138]
[1740045965133,0.542093,2731.0,2730.7,1.89138]
[1740045965439,0.73237,2730.8,2730.7,42.69138]
[1740045966039,0.73237,2730.8,2730.7,41.959]
[1740045966235,0.73237,2730.8,2730.7,42.69139]
[1740045967438,0.542093,2731.0,2730.7,41.959]
[1740045967639,0.73237,2730.8,2730.7,42.69138]
[1740045968439,0.542093,2731.0,2730.8,0.73236]
[1740045968640,1.274413,2731.0,2730.9,0.73234]
[1740045968940,0.73236,2730.9,2730.7,42.69138]
[1740045969439,0.005493,2731.0,2730.7,41.959]
[1740045969641,0.005493,2731.0,2730.9,3.94014]
[1740045970439,0.005493,2731.0,2730.9,44.74014]
[1740045973641,0.005493,2731.0,2730.9,3.94014]
[1740045974244,0.005493,2731.0,2730.9,44.74014]
[1740045979242,0.005493,2731.0,2730.9,3.94014]
[1740045979539,0.005493,2731.0,2730.9,6.26014]
[1740045979739,0.005493,2731.0,2730.7,1.89138]
[1740045979946,1.303323,2731.0,2730.9,2.32]
[1740045980247,0.570993,2731.0,2730.9,6.26014]
[1740045980450,0.005493,2731.0,2730.9,6.26014]
[1740045982048,1.27102,2731.4,2731.2,0.73225]
[1740045982250,1.27102,2731.4,2731.3,0.5477]
[1740045983852,1.27102,2731.4,2731.3,1.27993]
[1740045983853,0.5388,2731.4,2731.3,1.27993]
[1740045984050,1.27101,2731.4,2731.3,0.5477]
[1740045984551,0.5388,2731.4,2731.3,0.5477]
[1740045984740,0.5388,2731.4,2731.3,1.27993]
[1740045984945,0.5388,2731.4,2731.3,0.5477]
[1740045985652,0.5388,2731.4,2731.3,1.27993]
[1740045985952,0.5388,2731.4,2731.3,0.5477]
[1740045986850,0.5388,2731.4,2731.3,1.27993]
[1740045989047,0.5388,2731.4,2731.3,1.85863]
[1740045990253,1.319953,2731.6,2731.3,1.1264]
[1740045990555,0.73218,2731.5,2731.4,0.73218]
[1740045990754,0.587793,2731.6,2731.3,4.0149]
[1740045990955,1.319963,2731.6,2731.4,0.73219]
[1740045991757,0.73218,2731.5,2731.3,4.0149]
[1740045991956,0.73218,2731.5,2731.4,0.73221]
[1740045992157,0.587793,2731.6,2731.3,4.0149]
[1740045992353,0.587793,2731.6,2731.5,0.73218]
[1740045992751,0.005493,2731.6,2731.5,0.73218]
[1740045996261,0.005493,2731.6,2731.5,3.93998]
[1740045998167,0.005493,2731.6,2731.5,44.73998]
[1740046000971,3.9398,2732.2,2732.0,0.73204]
[1740046001165,3.9398,2732.2,2732.1,2.8731]
[1740046001670,0.5345,2732.3,2732.1,2.8731]
[1740046001869,1.0878,2732.3,2732.1,2.8731]
[1740046002072,1.0878,2732.3,2732.2,0.73199]
[1740046002873,1.0878,2732.3,2732.1,3.4286]
[1740046003068,1.0878,2732.3,2732.2,0.73199]
[1740046003367,1.0878,2732.3,2732.2,41.53199]
[1740046004171,0.5345,2732.3,2732.2,41.53199]
[1740046005477,0.5345,2732.3,2732.2,40.8]
[1740046005675,0.5345,2732.3,2732.2,41.53199]
[1740046005875,1.26646,2732.3,2732.2,40.8]
[1740046006077,3.21142818,2732.5,2732.2,40.8]
[1740046006272,0.00362818,2732.5,2732.3,3.2078]
[1740046006477,0.00362818,2732.5,2732.4,0.73194]
[1740046007077,0.00362818,2732.5,2732.4,41.53194]
[1740046008873,3.21142818,2732.5,2732.4,40.8]
[1740046009073,0.73553818,2732.5,2732.4,40.8]
[1740046010872,0.00362818,2732.5,2732.1,0.732]
[1740046011078,0.5817,2732.4,2731.9,3.213293]
[1740046011282,0.5817,2732.4,2732.0,0.73203]
[1740046011481,0.73196,2732.3,2732.2,40.8]
[1740046021788,1.28906,2732.3,2732.2,40.8]
[1740046021980,5.03746,2732.3,2732.2,40.8]
[1740046022788,10.3055,2732.3,2731.9,0.005493]
[1740046023088,0.73221,2731.4,2731.3,3.2078]
[1740046023285,0.73221,2731.4,2731.3,3.7947]
[1740046023482,0.73221,2731.4,2731.3,4.52693]
[1740046023789,0.73221,2731.4,2731.3,45.32693]
[1740046027390,0.7322,2731.5,2731.3,45.32693]
[1740046027590,0.73221,2731.4,2731.3,45.32693]
[1740046027988,0.7322,2731.5,2731.3,45.32693]
[1740046028192,3.2078,2732.0,2731.3,45.1349]
[1740046028489,5.5328,2733.0,2732.4,0.73194]
[1740046028689,1.27878,2732.7,2732.4,0.73194]
[1740046028885,0.73554818,2732.5,2732.3,0.73195]
[1740046029086,0.00362818,2732.5,2732.4,0.73194]
[1740046029293,0.00362818,2732.5,2732.2,4.339]
[1740046029489,0.73195,2732.4,2732.2,4.339]
[1740046029791,0.73196,2732.4,2732.2,4.339]
[1740046029993,0.00362818,2732.5,2732.2,4.339]
[1740046030292,0.73196,2732.3,2732.2,4.339]
[1740046030688,0.00362818,2732.5,2732.2,4.339]
[1740046031187,0.73195,2732.4,2732.2,4.339]
[1740046031586,0.73196,2732.4,2732.2,4.339]
[1740046032989,0.73196,2732.3,2732.2,4.339]
[1740046033292,0.73195,2732.4,2732.2,4.339]
[1740046034591,0.73195,2732.4,2732.2,5.07099]
[1740046035389,0.73195,2732.4,2732.2,4.339]
[1740046035601,0.73196,2732.4,2732.2,4.339]
[1740046035799,0.73196,2732.3,2732.2,4.339]
[1740046036891,0.00362818,2732.5,2732.2,4.339]
[1740046037201,0.73196,2732.4,2732.2,5.07099]
[1740046037691,0.00362818,2732.5,2732.2,5.07099]
[1740046037893,0.73196,2732.3,2732.2,5.07099]
[1740046038898,0.73196,2732.3,2732.2,4.339]
[1740046040796,0.73196,2732.3,2732.2,45.139]
[1740046041804,0.73196,2732.3,2732.2,45.87099]
[1740046042097,0.73196,2732.3,2732.2,41.9312]
[1740046042498,0.73196,2732.3,2732.2,40.8]
[1740046043002,3.93976,2732.3,2732.2,40.8]
[1740046045092,9.2078,2732.3,2731.8,0.5627]
[1740046045300,0.73207,2731.9,2731.8,0.5627]
[1740046045597,3.2078,2732.0,2731.4,3.6128]
[1740046045800,0.73217,2731.6,2731.5,0.5347]
[1740046046103,0.73217,2731.6,2731.5,41.3347]
[1740046046800,0.73215,2731.6,2731.5,41.3347]
[1740046048205,0.73215,2731.6,2731.5,40.8]
[1740046048605,1.26555,2731.6,2731.5,40.8]
[1740046054003,4.47335,2731.6,2731.5,40.8]
[1740046059811,0.73223,2731.3,2731.2,0.5594]
[1740046060313,0.73223,2731.3,2731.2,41.3594]
[1740046075322,3.2078,2731.5,2731.2,41.3594]
[1740046075523,3.2078,2731.5,2731.4,0.73221]
[1740046075917,3.2078,2731.8,2731.4,3.2078]
[1740046076116,0.73214,2731.7,2731.5,42.10716]
[1740046076315,0.73214,2731.7,2731.6,0.5473]
[1740046076927,0.73214,2731.7,2731.6,41.3473]
[1740046078321,0.73212,2731.8,2731.6,42.07945]
[1740046078723,0.73212,2731.8,2731.6,41.3473]
[1740046078925,0.73213,2731.7,2731.6,42.07944]
[1740046079123,3.2078,2732.1,2731.7,0.73211]
[1740046079325,0.73212,2731.8,2731.6,42.07944]
[1740046079526,3.2078,2732.1,2731.6,41.3473]
[1740046079725,0.73213,2731.7,2731.6,41.3473]
[1740046080437,0.73213,2731.7,2731.6,42.62725]
[1740046081142,3.2078,2732.1,2731.6,41.8951]
[1740046081441,3.2078,2732.1,2731.7,0.73211]
[1740046082031,0.73211,2731.8,2731.7,0.73213]
[1740046082227,0.73211,2731.8,2731.6,41.8951]
[1740046082438,0.73211,2731.8,2731.7,0.73213]
[1740046082634,0.73213,2731.7,2731.6,41.8951]
[1740046082836,0.73212,2731.8,2731.6,42.62723]
[1740046083439,0.73213,2731.7,2731.6,41.8951]
[1740046087944,1.27476,2732.0,2731.9,0.73207]
[1740046088142,1.27476,2732.0,2731.6,41.8951]
[1740046088143,0.5832,2732.3,2731.7,3.2078]
[1740046088338,0.5832,2732.3,2731.7,3.93991]
[1740046088544,0.7321,2731.8,2731.7,3.93991]
[1740046088846,1.1214,2732.3,2731.7,3.2078]
[1740046089137,0.5382,2732.3,2731.7,3.2078]
[1740046089342,0.73204,2732.1,2731.9,0.73205]
[1740046089544,0.73202,2732.1,2732.0,1.1666]
[1740046089745,0.73202,2732.1,2732.0,1.7447]
[1740046093645,0.7321,2731.8,2731.7,3.2078]
[1740046093946,0.7321,2731.8,2731.7,3.797]
[1740046095041,0.7321,2731.8,2731.7,4.9028]
[1740046097755,0.7321,2731.8,2731.7,5.63493]
[1740046097946,0.7321,2731.8,2731.7,4.9028]
[1740046099749,0.7321,2731.8,2731.7,1.695]
[1740046100253,3.2078,2732.0,2731.6,43.12]
[1740046100546,1.86403,2731.7,2731.6,43.12]
[1740046102453,0.73213,2731.7,2731.6,43.12]
[1740046102755,0.73213,2731.7,2731.6,44.2601]
[1740046103454,0.73206,2732.0,2731.9,0.73206]
[1740046103753,0.73207,2731.9,2731.8,0.73208]
[1740046104146,0.73212,2731.8,2731.6,44.2601]
[1740046104346,0.73211,2731.8,2731.7,0.73213]
[1740046104750,0.73208,2731.9,2731.8,0.73209]
[1740046105552,0.73207,2732.0,2731.9,0.73206]
[1740046105850,0.73207,2732.0,2731.9,0.5389]
[1740046106250,0.73207,2732.0,2731.9,1.27097]
[1740046107354,0.5794,2732.2,2731.9,0.5389]
[1740046107550,0.73202,2732.1,2732.0,0.5613]
[1740046109760,0.00362818,2732.5,2732.0,2.8823]
[1740046109959,0.00362818,2732.5,2732.1,3.2078]
[1740046110253,0.73195,2732.4,2732.3,0.73195]
[1740046110459,0.73195,2732.4,2732.3,43.85495]
[1740046110953,0.73195,2732.4,2732.3,43.123]
[1740046111154,0.73195,2732.4,2732.3,43.85496]
[1740046112559,0.73195,2732.4,2732.3,43.123]
[1740046113056,0.00362818,2732.5,2732.3,43.123]
[1740046113361,0.73553818,2732.5,2732.4,0.5511]
[1740046121561,0.73553818,2732.5,2732.4,1.1288]
[1740046123656,0.73553818,2732.5,2732.4,0.5511]
[1740046123860,0.73553818,2732.5,2732.3,40.8]
[1740046123861,0.73194,2732.4,2732.3,40.8]
[1740046124167,1.30924,2732.4,2732.3,43.119]
[1740046129768,1.30924,2732.4,2732.3,40.8]
[1740046139977,1.31058589,2732.4,2732.3,40.8]
[1740046170100,0.73328589,2732.4,2732.3,40.8]
[1740046193910,0.00134589,2732.4,2732.3,40.8]
[1740046194114,0.00134589,2732.4,2732.3,44.73976]
[1740046194308,0.00134589,2732.4,2732.3,47.05876]
[1740046198719,0.00362818,2732.5,2732.4,0.73194]
[1740046198920,0.00362818,2732.5,2732.4,1.81854]
[1740046201121,0.73178,2733.0,2732.9,0.73179]
[1740046201323,0.73178,2733.0,2732.9,3.93959]
[1740046201519,0.5331,2733.4,2732.9,3.2078]
[1740046201724,0.5331,2733.4,2732.9,5.04639]
[1740046201929,0.73178,2733.0,2732.9,5.04639]
[1740046202116,0.005493,2733.4,2733.0,0.73176]
[1740046202322,0.73175,2733.1,2733.0,0.73176]
[1740046203924,0.73175,2733.1,2733.0,3.93956]
[1740046204126,0.005493,2733.4,2733.0,3.2078]
[1740046204329,0.005493,2733.4,2733.1,0.5888]
[1740046204629,0.7317,2733.3,2733.2,3.05071]
[1740046204833,0.005493,2733.4,2733.3,0.7317]
[1740046205032,0.005493,2733.4,2733.3,5.0666]
[1740046205431,2.96,2733.7,2733.3,4.3349]
[1740046205626,0.5516,2733.8,2733.3,4.3349]
[1740046205831,3.2078,2734.2,2733.3,4.3349]
[1740046206031,0.73152,2734.0,2733.8,0.73155]
[1740046206231,0.73152,2734.0,2733.9,1.6757]
[1740046207036,0.73152,2734.0,2733.9,42.4757]
[1740046207241,0.73149,2734.1,2733.9,42.4757]
[1740046207536,0.73151,2734.0,2733.9,42.4757]
[1740046208535,3.2078,2734.2,2733.6,3.2078]
[1740046208728,0.73159,2733.7,2733.6,5.5258]
[1740046208930,0.73159,2733.7,2733.6,2.318]
[1740046210332,0.73159,2733.7,2733.5,41.9258]
[1740046210333,0.73162,2733.6,2733.5,41.9258]
[1740046210536,0.73162,2733.6,2733.5,43.6832]
[1740046210931,0.73162,2733.6,2733.5,41.3652]
[1740046211236,0.73162,2733.6,2733.5,40.8]
[1740046212538,4.3516,2733.9,2733.5,40.8]
[1740046212829,3.7942,2733.9,2733.5,40.8]
[1740046213034,0.73161,2733.7,2733.5,41.53163]
[1740046213336,0.73162,2733.6,2733.5,40.8]
[1740046214835,0.5902,2733.8,2733.5,41.53164]
[1740046215134,0.73161,2733.7,2733.6,0.73162]
[1740046215733,0.73158,2733.8,2733.5,40.8]
[1740046215939,0.73159,2733.7,2733.6,0.7316]
[1740046216839,0.73159,2733.7,2733.5,44.0078]
[1740046217141,3.7942,2733.9,2733.5,44.73942]
[1740046217340,0.73162,2733.6,2733.5,44.73942]
[1740046217639,0.7316,2733.7,2733.6,0.73161]
[1740046217938,3.7942,2733.9,2733.5,44.0078]
[1740046218130,0.73162,2733.6,2733.5,44.0078]
[1740046220241,0.73162,2733.6,2733.5,43.118]
[1740046220441,0.73162,2733.6,2733.5,40.8]
[1740046221342,0.73164,2733.5,2733.4,0.07316894]
[1740046221641,2.38094,2733.5,2733.4,0.07316894]
[1740046222341,2.38094,2733.5,2733.4,40.87316894]
[1740046223041,0.5471,2733.5,2733.4,41.60483894]
[1740046224534,1.27874,2733.5,2733.4,40.87316894]
[1740046235345,4.48654,2733.5,2733.4,40.87316894]
[1740046236549,4.48654,2733.5,2733.4,0.07316894]
[1740046240743,1.27874,2733.5,2733.4,0.07316894]
[1740046241051,4.48654,2733.5,2733.4,0.07316894]
[1740046241646,4.48654,2733.5,2733.4,8.94e-06]
[1740046241840,3.7549,2733.5,2732.9,40.805493]
[1740046242041,0.73178,2733.0,2732.9,40.805493]
[1740046247955,0.73178,2733.0,2732.9,0.005493]
[1740046258561,0.73178,2733.0,2732.9,0.592493]
[1740046273067,6.19702,2733.4,2732.9,0.592493]
[1740046273364,0.73178,2733.0,2732.9,1.324283]
[1740046274285,0.73178,2733.0,2732.9,0.592493]
[1740046275879,0.73178,2733.0,2732.9,3.800293]
[1740046279079,0.73178,2733.0,2732.9,4.532093]
[1740046279480,0.73178,2733.0,2732.9,1.324293]
[1740046279681,0.73178,2733.0,2732.9,4.532093]
[1740046287182,0.73178,2733.0,2732.9,3.800293]
[1740046287388,6.1678,2733.8,2732.9,3.800293]
[1740046287689,0.73164,2733.6,2733.4,0.73165]
[1740046287880,0.73162,2733.6,2733.5,41.3811]
[1740046288076,0.73162,2733.6,2733.5,40.8]
[1740046288280,0.5897,2733.7,2733.4,2.318]
[1740046288485,0.73164,2733.5,2733.4,2.318]
[1740046288689,0.73172,2733.3,2733.1,0.5811]
[1740046288989,0.73172,2733.3,2733.2,40.8]
[1740046290086,0.73172,2733.3,2733.2,43.118]
[1740046290388,0.73172,2733.3,2733.2,43.84972]
[1740046290595,0.73172,2733.3,2733.2,43.118]
[1740046295202,0.73172,2733.3,2733.2,43.84972]
[1740046297195,2.41872,2733.7,2733.2,43.118]
[1740046297401,0.73168,2733.4,2733.3,0.73168]
[1740046298099,0.73168,2733.4,2733.3,41.53168]
[1740046298299,0.73168,2733.4,2733.3,40.8]
[1740046301299,0.73172,2733.2,2733.1,3.2078]
[1740046301507,3.2078,2733.2,2732.9,0.005493]
[1740046301700,0.73178,2733.0,2732.9,0.005493]
[1740046306107,0.73191,2732.5,2732.4,0.40292]